fUSD/lending_fUSD_20251210
["ID","MTS","AMOUNT","RATE_DAILY","PERIOD"]
[398152163,1765405643987,151.0,0.00017973,2]
[398152164,1765405644616,151.0,0.00017973,2]
[398152165,1765405645403,151.0,0.00017973,2]
[398152166,1765405645895,151.0,0.00017973,2]
[398152167,1765405646524,151.0,0.00017973,2]
[398152168,1765405647156,151.0,0.00017973,2]
[398152169,1765405647802,151.0,0.00017973,2]
[398152176,1765405674506,6579.48,0.00017,2]
[398152177,1765405674532,10000.01,0.00017,2]
[398152178,1765405674558,10000.01,0.00017,2]
[398152179,1765405674587,10000.01,0.00017,2]
[398152180,1765405674612,10000.01,0.00017,2]
[398152181,1765405674638,10000.01,0.00017,2]
[398152182,1765405674665,10000.01,0.00017,2]
[398152183,1765405674689,10000.01,0.00017,2]
[398152184,1765405674718,10000.01,0.00017,2]
[398152185,1765405674744,10000.01,0.00017,2]
[398152186,1765405675678,-619.54657593,0.00017,2]
[398152187,1765405679604,-315.77757461,0.00017,2]
[398152188,1765405681567,-223.60885317,0.00016999,2]
[398152189,1765405682827,-76.39114683,0.00016999,2]
[398152190,1765405683265,-8389.52980408,0.00017,2]
[398152191,1765405683353,-10000.01,0.00017,2]
[398152192,1765405683464,-10000.01,0.00017,2]
[398152193,1765405683779,-10000.01,0.00017,2]
[398152194,1765405683896,-10000.01,0.00017,2]
[398152195,1765405684019,-10000.01,0.00017,2]
[398152196,1765405684155,-10000.01,0.00017,2]
[398152197,1765405684273,-10000.01,0.00017,2]
[398152198,1765405686057,-152.33736979,0.00017,2]
[398152199,1765405686381,-10000.01,0.00017,2]
[398152200,1765405686419,-10000.01,0.00017,2]
[398152201,1765405687636,-361.8782281,0.00017,2]
[398152202,1765405690238,-327.4578182,0.00017,2]
[398152203,1765405692441,-10000.01,0.00017,2]
[398152204,1765405692556,-10000.01,0.00017,2]
[398152205,1765405692668,-10000.01,0.00017,2]
[398152206,1765405692820,-178.30930295,0.00017,2]
[398152207,1765405697241,-230.85,0.00017,2]
[398152208,1765405700424,-195.21170701,0.00017,2]
[398152209,1765405702913,-10000.01,0.00017,2]
[398152210,1765405703038,-10000.01,0.00017,2]
[398152211,1765405704725,-154.59804507,0.00017,2]
[398152212,1765405706226,-333.86092404,0.00017,2]
[398152213,1765405708181,-248.14476293,0.00017,2]
[398152214,1765405710076,2723.19820944,0.0001,2]
[398152215,1765405711996,-153.03,0.00017,2]
[398152216,1765405712524,-10000.01,0.00017,2]
[398152217,1765405712734,-10000.01,0.00017,2]
[398152218,1765405714109,-233.74293136,0.00016999,2]
[398152219,1765405714135,-21.53577431,0.00017,2]
[398152220,1765405715708,-152.37446444,0.00017,2]
[398152221,1765405718119,-168.07387925,0.00017,2]
[398152222,1765405719879,2577.70015217,0.0001,2]
[398152223,1765405720304,-236.16323085,0.00017,2]
[398152224,1765405723376,-648.06580512,0.00017,2]
[398152225,1765405729147,-254.11640843,0.00017,2]
[398152226,1765405731275,-204.94623169,0.00017,2]
[398152227,1765405733103,-397.8022865,0.00016915,2]
[398152228,1765405735246,-254.45923836,0.00016915,2]
[398152229,1765405739065,-159.51406417,0.00016915,2]
[398152230,1765405741579,-331.51001403,0.00016915,2]
[398152231,1765405744778,-335.84015202,0.00016915,2]
[398152232,1765405748282,-155.66375929,0.00016915,2]
[398152233,1765405751655,-183.85753382,0.00016915,2]
[398152234,1765405753880,-496.64053203,0.00016915,2]
[398152235,1765405755487,-647.64361531,0.00016915,2]
[398152236,1765405757477,-1000.0,0.00016915,2]
[398152237,1765405759920,-263.91589208,0.00016915,2]
[398152238,1765405761387,-174.58591822,0.00016915,2]
[398152239,1765405764110,-301.9265699,0.00016915,2]
[398152240,1765405765643,-215.72856521,0.00016915,2]
[398152241,1765405767821,-127.61107906,0.00016915,2]
[398152242,1765405767844,-62.49440765,0.00016957,2]
[398152243,1765405769305,-187.50559235,0.00016957,2]
[398152244,1765405769328,-151.0,0.00016997,2]
[398152245,1765405769353,-47.46114668,0.00016999,2]
[398152246,1765405772994,-165.48140306,0.00016999,2]
[398152247,1765405775517,-87.05745026,0.00016999,2]
[398152248,1765405775540,-214.94254974,0.00017,2]
[398152249,1765405776974,-267.77015428,0.00017,2]
[398152250,1765405779309,-191.73093122,0.00017,2]
[398152251,1765405782902,-208.35748136,0.00017,2]
[398152252,1765405784426,-649.82991091,0.00017,2]
[398152253,1765405786406,-332.91576671,0.00017,2]
[398152254,1765405791733,-222.18991899,0.00017,2]
[398152255,1765405794952,-705.21136268,0.00017,2]
[398152256,1765405797715,-534.92130023,0.00017,2]
[398152257,1765405799433,-452.97834523,0.00017,2]
[398152258,1765405801951,-245.40498281,0.00016999,2]
[398152259,1765405806551,-285.82653872,0.0001699,2]
[398152260,1765405811012,-155.67,0.0001699,2]
[398152261,1765405812907,-276.99316811,0.0001699,2]
[398152262,1765405816075,-243.43413665,0.0001699,2]
[398152263,1765405817648,-292.06257543,0.0001699,2]
[398152264,1765405821810,-54.59501719,0.00016999,2]
[398152265,1765405821833,-116.97790346,0.00016999,2]
[398152266,1765405825199,-183.02209654,0.00016999,2]
[398152267,1765405825227,-48.16213194,0.00016999,2]
[398152268,1765405829182,-251.83786806,0.00016999,2]
[398152269,1765405829208,-0.5706229,0.00016999,2]
[398152270,1765405830677,-205.2540755,0.00016999,2]
[398152275,1765405831661,-994.1753016,0.00016999,2]
[398152277,1765405831671,-150.0,0.00016999,2]
[398152278,1765405831681,-3155.82469824,0.00017,2]
[398152279,1765405831721,-369.39188292,0.00017,2]
[398152280,1765405831783,-907.39497235,0.00017,2]
[398152281,1765405831802,-600.56337987,0.00017,2]
[398152282,1765405831814,-610.96842614,0.00017,2]
[398152283,1765405831826,-2180.125849,0.00017,2]
[398152285,1765405831916,-78959.62638421,0.00017,2]
[398152287,1765405831927,-2248.30378374,0.00017,2]
[398152289,1765405831939,-75079.74789027,0.00017,2]
[398152291,1765405831950,-397.84647269,0.00017,2]
[398152378,1765405832762,-306.53792585,0.00017,2]
[398152418,1765405834289,-250.0,0.00017,2]
[398152419,1765405834382,-184.6043,0.00017,2]
[398152420,1765405834864,-218.14885436,0.00017,2]
[398152421,1765405837282,-267.22706874,0.00017,2]
[398152423,1765405837837,-476960.11604437,0.00017,2]
[398152424,1765405837848,-294.0,0.00017,2]
[398152425,1765405837858,-597.33729829,0.00017351,2]
[398152426,1765405837868,-370.22231728,0.00017451,2]
[398152427,1765405837877,-500.42181547,0.00017873,2]
[398152428,1765405837887,-500.28821444,0.00017873,2]
[398152429,1765405837897,-500.0,0.00017873,2]
[398152430,1765405837907,-500.0,0.00017873,2]
[398152431,1765405837916,-500.0,0.00017873,2]
[398152432,1765405837926,-500.0,0.00017873,2]
[398152433,1765405837936,-500.0,0.00017873,2]
[398152434,1765405837946,-500.0,0.00017873,2]
[398152435,1765405837955,-500.0,0.00017873,2]
[398152436,1765405837965,-500.0,0.00017873,2]
[398152437,1765405837974,-500.0,0.00017873,2]
[398152438,1765405837984,-1000.0,0.00018421,2]
[398152439,1765405837994,-500.0,0.00018421,2]
[398152440,1765405838004,-710.27524862,0.00018421,2]
[398152441,1765405838014,-500.0,0.00018421,2]
[398152442,1765405838023,-1000.0,0.00018421,2]
[398152443,1765405838033,-1000.0,0.00018421,2]
[398152444,1765405838042,-1000.0,0.00018421,2]
[398152445,1765405838052,-1000.0,0.00018421,2]
[398152446,1765405838062,-420.0,0.00018567,2]
[398152447,1765405838071,-420.0,0.00018567,2]
[398152448,1765405838081,-250.0,0.00018606,2]
[398152449,1765405838091,-1680.0,0.00018659,2]
[398152450,1765405838101,-1000.0,0.00018716,2]
[398152451,1765405838111,-13.46992129,0.00018717,2]
[398152453,1765405838121,-1500.0,0.00018968,2]
[398152454,1765405838131,-1500.0,0.00018968,2]
[398152455,1765405838141,-1500.0,0.00018968,2]
[398152456,1765405838150,-1500.0,0.00018968,2]
[398152457,1765405838161,-1500.0,0.00018968,2]
[398152458,1765405838172,-143309.9395137,0.00019,2]
[398152459,1765405838181,-869.74506906,0.00019416,2]
[398152460,1765405838191,-2000.0,0.00019516,2]
[398152461,1765405838200,-2000.0,0.00019516,2]
[398152462,1765405838210,-1276.31372765,0.00019516,2]
[398152463,1765405838220,-1497.29568765,0.00019516,2]
[398152464,1765405838230,-2101.59824678,0.00019516,2]
[398152465,1765405838240,-412.86,0.00019582,2]
[398152466,1765405838249,-2500.0,0.00020064,2]
[398152467,1765405838262,-189.11464765,0.00020064,2]
[398152468,1765405838272,-151.03336106,0.00020087,2]
[398152469,1765405838283,-150.53,0.00020187,2]
[398152470,1765405838293,-587.0,0.00020279,2]
[398152471,1765405838302,-587.0,0.00020279,2]
[398152472,1765405838312,-342.33099419,0.00020311,2]
[398152473,1765405838322,-2351.0,0.00020481,2]
[398152474,1765405838332,-3022.228108,0.00020612,2]
[398152475,1765405838341,-1159.0,0.00020645,2]
[398152476,1765405838351,-460.0,0.00020686,2]
[398152477,1765405838361,-236.0240853,0.00020716,2]
[398152478,1765405838371,-1868.0,0.00020728,2]
[398152479,1765405838381,-1974.0,0.00020769,2]
[398152480,1765405838391,-500.0,0.00021918,4]
[398152481,1765405838400,-500.0,0.00021918,4]
[398152482,1765405838410,-500.0,0.00021918,4]
[398152483,1765405838421,-359.80493092,0.00021918,4]
[398152484,1765405838430,-823.0,0.00022149,2]
[398152485,1765405838440,-823.0,0.00022149,2]
[398152486,1765405838451,-3292.0,0.00022481,2]
[398152487,1765405838461,-235.55392015,0.0002278,2]
[398152488,1765405838470,-5002.38838639,0.00023,30]
[398152489,1765405838480,-151.03336105,0.0002367,7]
[398152490,1765405838490,-250.0,0.000238,2]
[398152491,1765405838500,-1152.0,0.00024192,2]
[398152492,1765405838510,-1152.0,0.00024192,2]
[398152493,1765405838520,-4609.0,0.00024676,2]
[398152494,1765405838531,-97287.9100359,0.000248,3]
[398152495,1765405838540,-4397.01106014,0.000249,3]
[398152496,1765405838550,-500.0,0.00024973,2]
[398152497,1765405838562,-500.0,0.00024973,2]
[398152498,1765405838573,-500.0,0.00024973,2]
[398152499,1765405838584,-500.0,0.00024973,2]
[398152500,1765405838595,-500.0,0.00024973,2]
[398152501,1765405838606,-500.0,0.00024973,2]
[398152502,1765405838618,-500.0,0.00024973,2]
[398152503,1765405838630,-500.0,0.00024973,2]
[398152504,1765405838642,-150.0,0.00024973,2]
[398152505,1765405838652,-5862.68141352,0.0002499,3]
[398152506,1765405838663,-150.84,0.0002499,2]
[398152507,1765405838674,-150.84,0.0002499,2]
[398152508,1765405838685,-637.13447373,0.0002499,2]
[398152509,1765405838696,-151.0,0.00024997,7]
[398152510,1765405838706,-151.0,0.00024997,7]
[398152511,1765405838719,-322.25724836,0.00024999,2]
[398152512,1765405838729,-500.0,0.00024999,2]
[398152513,1765405838890,-194.13763001,0.00024999,2]
[398152514,1765405838913,-502.41853196,0.00024999,2]
[398152515,1765405838923,-327811.46267208,0.00025,2]
[398152516,1765405838933,-968.27142316,0.00025334,2]
[398152517,1765405838944,-600.0,0.00025506,7]
[398152518,1765405838954,-538.0,0.00026423,2]
[398152519,1765405838964,-175.0,0.00026423,2]
[398152520,1765405838974,-150.53,0.00026676,2]
[398152521,1765405838984,-869.74506906,0.0002682,2]
[398152522,1765405838994,-4693.33,0.00026924,2]
[398152523,1765405839004,-1822.0,0.00027086,2]
[398152524,1765405839014,-151.03336105,0.00027254,12]
[398152525,1765405839025,-236.44,0.000274,2]
[398152526,1765405839035,-236.44,0.000274,2]
[398152527,1765405839045,-236.44,0.000274,2]
[398152528,1765405839055,-236.44,0.000274,2]
[398152529,1765405839064,-236.44,0.000274,2]
[398152530,1765405839074,-158.47,0.00028076,2]
[398152531,1765405839085,-499.999999,0.0003013,2]
[398152532,1765405839095,-151.03336105,0.00030837,17]
[398152533,1765405839106,-1200.48,0.000309,30]
[398152534,1765405839116,-500.0,0.00032493,2]
[398152535,1765405839127,-160.08807114,0.00032877,2]
[398152536,1765405839138,-500.0,0.00032877,7]
[398152537,1765405839148,-500.0,0.00032877,7]
[398152538,1765405839158,-500.0,0.00032877,7]
[398152539,1765405839168,-500.0,0.00032877,7]
[398152540,1765405839178,-500.0,0.00032877,7]
[398152541,1765405839188,-500.0,0.00032877,7]
[398152542,1765405839197,-500.0,0.00032877,7]
[398152543,1765405839207,-500.0,0.00032877,7]
[398152544,1765405839216,-500.0,0.00032877,7]
[398152545,1765405839226,-500.0,0.00032877,7]
[398152546,1765405839235,-500.0,0.00032877,7]
[398152547,1765405839244,-500.0,0.00032877,7]
[398152548,1765405839254,-500.0,0.00032877,7]
[398152549,1765405839264,-500.0,0.00032877,7]
[398152550,1765405839273,-500.0,0.00032877,7]
[398152551,1765405839283,-500.0,0.00032877,7]
[398152552,1765405839293,-500.0,0.00032877,7]
[398152553,1765405839303,-500.0,0.00032877,7]
[398152554,1765405839312,-500.0,0.00032877,7]
[398152555,1765405839322,-500.0,0.00032877,7]
[398152556,1765405839331,-500.0,0.00032877,7]
[398152557,1765405839342,-500.0,0.00032877,7]
[398152558,1765405839351,-500.0,0.00032877,7]
[398152559,1765405839361,-500.0,0.00032877,7]
[398152560,1765405839370,-500.0,0.00032877,7]
[398152561,1765405839379,-500.0,0.00032877,7]
[398152562,1765405839389,-500.0,0.00032877,7]
[398152563,1765405839399,-500.0,0.00032877,7]
[398152564,1765405839409,-500.0,0.00032877,7]
[398152565,1765405839418,-500.0,0.00032877,7]
[398152566,1765405839428,-500.0,0.00032877,7]
[398152567,1765405839438,-500.0,0.00032877,7]
[398152568,1765405839447,-500.0,0.00032877,7]
[398152569,1765405839457,-500.0,0.00032877,7]
[398152570,1765405839466,-500.0,0.00032877,7]
[398152571,1765405839476,-500.0,0.00032877,7]
[398152572,1765405839485,-500.0,0.00032877,7]
[398152573,1765405839495,-500.0,0.00032877,7]
[398152574,1765405839504,-500.0,0.00032877,7]
[398152575,1765405839514,-500.0,0.00032877,7]
[398152576,1765405839524,-500.0,0.00032877,7]
[398152577,1765405839534,-200.51341143,0.00032877,7]
[398152578,1765405839543,-500.0,0.00032877,7]
[398152579,1765405839552,-500.0,0.00032877,7]
[398152580,1765405839562,-500.0,0.00032877,7]
[398152581,1765405839572,-500.0,0.00032877,7]
[398152582,1765405839582,-500.0,0.00032877,7]
[398152583,1765405839592,-500.0,0.00032877,7]
[398152584,1765405839602,-500.0,0.00032877,7]
[398152585,1765405839613,-500.0,0.00032877,7]
[398152586,1765405839623,-500.0,0.00032877,7]
[398152587,1765405839636,-500.0,0.00032877,7]
[398152588,1765405839646,-450.0,0.00032877,7]
[398152589,1765405839656,-500.0,0.00032877,7]
[398152590,1765405839667,-500.0,0.00032877,7]
[398152591,1765405839676,-500.0,0.00032877,7]
[398152592,1765405839685,-500.0,0.00032877,7]
[398152593,1765405839696,-500.0,0.00032877,7]
[398152594,1765405839707,-500.0,0.00032877,7]
[398152595,1765405839717,-500.0,0.00032877,7]
[398152597,1765405839726,-500.0,0.00032877,7]
[398152598,1765405839736,-500.0,0.00032877,7]
[398152600,1765405839745,-500.0,0.00032877,7]
[398152601,1765405839755,-500.0,0.00032877,7]
[398152603,1765405839764,-500.0,0.00032877,7]
[398152605,1765405839773,-500.0,0.00032877,7]
[398152607,1765405839783,-221.26,0.000329,14]
[398152609,1765405839793,-150.53,0.00033165,2]
[398152610,1765405839803,-4102.52150678,0.00033799,7]
[398152611,1765405839813,-732.83517669,0.00034082,3]
[398152612,1765405839822,-9121.70594002,0.00034092,2]
[398152613,1765405839833,-869.74506906,0.00034223,8]
[398152614,1765405839842,-150.84,0.00034313,2]
[398152615,1765405839851,-9999.99,0.00034323,2]
[398152616,1765405839861,-151.03336105,0.0003442,22]
[398152617,1765405839870,-150.99,0.00034568,2]
[398152618,1765405839879,-5321.41851799,0.00035,30]
[398152619,1765405839889,-1313.77,0.00035375,2]
[398152620,1765405839898,-188.98,0.00035825,120]
[398152621,1765405839907,-1676.73388775,0.00036619,2]
[398152622,1765405839916,-150.0,0.00036962,7]
[398152623,1765405839926,-198.33769362,0.00036962,7]
[398152624,1765405839935,-182.8828485,0.00036962,7]
[398152625,1765405839944,-150.0,0.00036962,7]
[398152626,1765405839954,-150.0,0.00036962,7]
[398152627,1765405839963,-156.18641283,0.00036962,7]
[398152628,1765405839972,-183.49205077,0.00036962,7]
[398152629,1765405839981,-150.0,0.00036962,7]
[398152630,1765405839991,-242.20759846,0.00036962,7]
[398152631,1765405840000,-150.0,0.00036962,7]
[398152632,1765405840009,-150.0,0.00036962,7]
[398152633,1765405840019,-150.0,0.00036962,7]
[398152634,1765405840028,-150.0,0.00036962,7]
[398152635,1765405840038,-150.4153374,0.00036962,7]
[398152636,1765405840047,-150.0,0.00036962,7]
[398152637,1765405840056,-150.0,0.00036962,7]
[398152638,1765405840066,-20193.4,0.00036986,30]
[398152639,1765405840075,-221.26,0.00037,14]
[398152640,1765405840085,-1852.42,0.00037136,2]
[398152641,1765405840094,-658.09,0.00037141,30]
[398152642,1765405840104,-1200.48,0.000372,30]
[398152643,1765405840113,-150.0,0.00037418,7]
[398152644,1765405840122,-158.47,0.00037434,2]
[398152645,1765405840131,-150.0,0.00037783,7]
[398152646,1765405840140,-150.0,0.00037874,7]
[398152647,1765405840149,-166.66,0.00037923,30]
[398152648,1765405840158,-151.03336105,0.00038004,27]
[398152649,1765405840168,-650.0,0.00038135,2]
[398152650,1765405840177,-304.40574045,0.00038222,2]
[398152651,1765405840186,-650.0,0.00038252,2]
[398152652,1765405840196,-650.0,0.00038322,2]
[398152653,1765405840205,-150.0,0.00038331,7]
[398152655,1765405840215,-156.57,0.00038338,2]
[398152656,1765405840224,-650.0,0.00038512,2]
[398152657,1765405840234,-150.0,0.00038604,7]
[398152658,1765405840244,-500.0,0.000387,120]
[398152659,1765405840253,-500.0,0.000387,120]
[398152660,1765405840262,-500.0,0.000387,120]
[398152662,1765405840272,-500.0,0.000387,120]
[398152663,1765405840281,-500.0,0.000387,120]
[398152665,1765405840290,-197.89720748,0.000387,2]
[398152666,1765405840299,-4693.33,0.00038705,2]
[398152667,1765405840309,-166.66,0.00038722,30]
[398152668,1765405840318,-150.0,0.00038787,7]
[398152669,1765405840327,-732.83517669,0.00038789,4]
[398152670,1765405840337,-150.84,0.0003879,2]
[398152671,1765405840346,-150.84,0.0003879,2]
[398152673,1765405840356,-150.84,0.0003879,2]
[398152675,1765405840365,-150.84,0.0003879,2]
[398152677,1765405840374,-150.84,0.0003879,2]
[398152679,1765405840383,-150.84,0.0003879,2]
[398152680,1765405840394,-150.84,0.0003879,2]
[398152681,1765405840403,-150.84,0.0003879,2]
[398152682,1765405840412,-150.84,0.0003879,2]
[398152683,1765405840422,-150.84,0.0003879,2]
[398152684,1765405840431,-150.84,0.0003879,2]
[398152685,1765405840441,-150.84,0.0003879,2]
[398152686,1765405840450,-150.84,0.0003879,2]
[398152687,1765405840460,-150.84,0.0003879,2]
[398152688,1765405840470,-150.84,0.0003879,2]
[398152689,1765405840479,-151.0,0.00038796,14]
[398152690,1765405840488,-287.90536885,0.00038797,14]
[398152691,1765405840497,-151.0,0.00038797,14]
[398152692,1765405840507,-300.0,0.00038799,10]
[398152693,1765405840517,-549666.34058469,0.000388,7]
[398152694,1765405840691,-5698.27861272,0.000388,7]
[398152695,1765405840703,-48773.54660252,0.000388,7]
[398152696,1765405840714,-513.46651266,0.000388,7]
[398152697,1765405841530,-369.0,0.00019401,2]
[398152698,1765405841540,-683.71079854,0.000388,7]
[398152699,1765405841563,-630598.65118937,0.000388,7]
[398152700,1765405841572,-151.0,0.000388,120]
[398152701,1765405841582,-151.0,0.000388,120]
[398152702,1765405841591,-232.001559,0.000388,120]
[398152703,1765405841600,-151.0,0.000388,120]
[398152704,1765405841609,-151.0,0.000388,120]
[398152705,1765405841618,-151.0,0.000388,120]
[398152706,1765405841631,-151.0,0.000388,120]
[398152707,1765405841640,-151.0,0.000388,120]
[398152708,1765405841650,-151.0,0.000388,120]
[398152709,1765405841660,-151.0,0.000388,120]
[398152710,1765405841671,-151.0,0.000388,120]
[398152711,1765405841680,-151.0,0.000388,120]
[398152712,1765405841691,-151.0,0.000388,120]
[398152713,1765405841700,-151.0,0.000388,120]
[398152714,1765405841711,-151.0,0.000388,120]
[398152715,1765405841721,-151.0,0.000388,120]
[398152716,1765405841730,-215.85488,0.000388,120]
[398152717,1765405841739,-151.0,0.000388,60]
[398152718,1765405841749,-151.0,0.000388,120]
[398152719,1765405841759,-217.641335,0.000388,120]
[398152720,1765405841769,-217.641335,0.000388,120]
[398152721,1765405841779,-217.641335,0.000388,120]
[398152722,1765405841788,-217.641335,0.000388,120]
[398152723,1765405841798,-151.0,0.000388,120]
[398152724,1765405841808,-151.0,0.000388,120]
[398152725,1765405841817,-151.0,0.000388,120]
[398152726,1765405841826,-191.302421,0.000388,120]
[398152727,1765405841835,-151.0,0.000388,120]
[398152728,1765405841845,-151.0,0.000388,120]
[398152729,1765405841854,-191.302421,0.000388,120]
[398152730,1765405841864,-151.0,0.000388,120]
[398152731,1765405841873,-191.302421,0.000388,120]
[398152732,1765405841883,-151.0,0.000388,120]
[398152733,1765405841892,-191.302421,0.000388,120]
[398152734,1765405841902,-151.0,0.000388,120]
[398152735,1765405841911,-151.0,0.000388,120]
[398152736,1765405841920,-151.0,0.000388,120]
[398152737,1765405841930,-250.991524,0.000388,120]
[398152738,1765405841939,-233.22713,0.000388,120]
[398152739,1765405841948,-705.401185,0.000388,120]
[398152740,1765405841959,-151.0,0.000388,120]
[398152741,1765405841969,-705.401185,0.000388,120]
[398152742,1765405841977,-705.401185,0.000388,120]
[398152743,1765405841987,-705.401185,0.000388,120]
[398152744,1765405841996,-151.0,0.000388,120]
[398152745,1765405842005,-151.0,0.000388,120]
[398152746,1765405842014,-151.0,0.000388,120]
[398152747,1765405842023,-151.0,0.000388,120]
[398152748,1765405842032,-298.12774,0.000388,120]
[398152749,1765405842041,-151.0,0.000388,120]
[398152750,1765405842050,-298.12774,0.000388,120]
[398152751,1765405842059,-151.0,0.000388,5]
[398152752,1765405842068,-298.12774,0.000388,120]
[398152753,1765405842078,-151.0,0.000388,5]
[398152754,1765405842087,-298.12774,0.000388,120]
[398152755,1765405842097,-151.0,0.000388,5]
[398152756,1765405842106,-362.128627,0.000388,120]
[398152757,1765405842115,-362.128627,0.000388,120]
[398152758,1765405842124,-772.97454249,0.00038825,2]
[398152759,1765405842133,-168.0,0.00038842,2]
[398152760,1765405842143,-221.26,0.000389,14]
[398152761,1765405842153,-166.66,0.00038925,2]
[398152762,1765405842162,-2509.587468,0.00039041,120]
[398152763,1765405842171,-2509.587468,0.00039041,120]
[398152764,1765405842180,-2509.587468,0.00039041,120]
[398152765,1765405842191,-2509.587468,0.00039041,120]
[398152766,1765405842200,-563.0,0.00039055,2]
[398152767,1765405842209,-772.97454243,0.00039132,2]
[398152768,1765405842219,-300.0,0.00039183,2]
[398152769,1765405842228,-200.0,0.00039183,2]
[398152770,1765405842237,-207.4,0.00039183,2]
[398152771,1765405842247,-215.0738,0.00039183,2]
[398152772,1765405842257,-223.0315306,0.00039183,2]
[398152773,1765405842266,-160.77265049,0.00039183,2]
[398152774,1765405842275,-150.0,0.00039243,7]
[398152775,1765405842284,-1200.48,0.000393,30]
[398152776,1765405842293,-150.84,0.00039394,2]
[398152777,1765405842303,-41806.54690406,0.00039404,2]
[398152778,1765405842312,-150.0,0.00039426,7]
[398152779,1765405842321,-772.97454243,0.00039439,2]
[398152780,1765405842330,-1084.746235,0.000395,80]
[398152781,1765405842340,-166.66,0.0003952,30]
[398152782,1765405842350,-999.0,0.00039635,3]
[398152783,1765405842359,-150.53,0.00039654,2]
[398152784,1765405842368,-256.63,0.00039688,2]
[398152785,1765405842378,-150.0,0.000397,7]
[398152786,1765405842387,-772.97454243,0.00039746,2]
[398152787,1765405842397,-6679.449,0.00039833,2]
[398152788,1765405842406,-4090.1927,0.00039833,2]
[398152789,1765405842415,-2500.0,0.00039833,2]
[398152790,1765405842425,-1000.0,0.00039834,2]
[398152791,1765405842434,-12832.3031,0.00039834,2]
[398152792,1765405842443,-1725.6103,0.00039834,2]
[398152793,1765405842452,-650.0,0.00039843,7]
[398152794,1765405842461,-168.0,0.00039914,2]
[398152795,1765405842470,-2107.77932816,0.0003992,2]
[398152796,1765405842480,-2502.572,0.0003992,56]
[398152797,1765405842489,-176.717,0.0003992,56]
[398152798,1765405842498,-150.84,0.00039924,2]
[398152799,1765405842507,-150.84,0.00039924,2]
[398152800,1765405842516,-150.84,0.00039924,2]
[398152801,1765405842526,-150.84,0.00039924,2]
[398152803,1765405842536,-150.84,0.00039924,2]
[398152804,1765405842545,-150.84,0.00039924,2]
[398152805,1765405842555,-150.84,0.00039924,2]
[398152806,1765405842564,-150.84,0.00039924,2]
[398152807,1765405842573,-150.84,0.00039924,2]
[398152808,1765405842583,-150.84,0.00039924,2]
[398152809,1765405842593,-151.0,0.0003993,14]
[398152810,1765405842604,-444.88845389,0.00039933,60]
[398152811,1765405842614,-500.0,0.00039933,60]
[398152812,1765405842624,-500.0,0.00039933,60]
[398152813,1765405842638,-500.0,0.00039933,2]
[398152814,1765405842648,-500.0,0.00039933,2]
[398152815,1765405842660,-500.0,0.00039933,2]
[398152816,1765405842671,-500.0,0.00039933,2]
[398152817,1765405842680,-10333.1527,0.00039934,2]
[398152818,1765405842690,-1000.0,0.00039934,2]